fUST/lending_fUST_20250413
["ID","MTS","AMOUNT","RATE_DAILY","PERIOD"]
[357876640,1744494641949,-151.0,0.00027397,2]
[357876641,1744494641966,-500.0,0.00027397,5]
[357876642,1744494641983,-814.0,0.00027671,2]
[357876643,1744494642000,-151.0,0.00027671,2]
[357876644,1744494642017,-500.0,0.00027712,2]
[357876645,1744494642034,-500.54745208,0.00027733,5]
[357876646,1744494642050,-202.32741363,0.00027806,5]
[357876647,1744494642067,-500.88277033,0.00027806,5]
[357876648,1744494642085,-500.0,0.00027806,5]
[357876649,1744494642102,-519.64995,0.00027806,5]
[357876650,1744494642119,-160.0,0.00027831,7]
[357876651,1744494642135,-5013.08783235,0.00027831,7]
[357876652,1744494642153,-500.0,0.00027871,5]
[357876653,1744494642170,-390.89491144,0.00027871,5]
[357876654,1744494642187,-500.0,0.00027871,5]
[357876655,1744494642203,-502.00268375,0.00027871,5]
[357876656,1744494642220,-814.0,0.00027945,2]
[357876657,1744494642236,-257.14956933,0.00027945,2]
[357876658,1744494642252,-3786.1655083,0.0002799,2]
[357876659,1744494642269,-326.66672604,0.0002799,2]
[357876660,1744494642287,-405.02685547,0.00027999,2]
[357876661,1744494642303,-500.0,0.00027999,2]
[357876662,1744494642320,-33871.09777741,0.00028,2]
[357876663,1744494642336,-628.07,0.00028,2]
[357876676,1744494642649,-151.0,0.00028,7]
[357876683,1744494642701,-151.0,0.00028,7]
[357876686,1744494642711,-151.0,0.00028,7]
[357876688,1744494642722,-151.0,0.00028,7]
[357876691,1744494642732,-151.0,0.00028,7]
[357876693,1744494642742,-151.0,0.00028,2]
[357876696,1744494642751,-151.0,0.00028,2]
[357876698,1744494642760,-156.0,0.00028,7]
[357876701,1744494642770,-151.0,0.00028,7]
[357876703,1744494642780,-151.0,0.00028,7]
[357876706,1744494642789,-151.0,0.00028,7]
[357876708,1744494642798,-151.0,0.00028,7]
[357876711,1744494642808,-151.0,0.00028,7]
[357876713,1744494642817,-151.0,0.00028,7]
[357876715,1744494642826,-151.0,0.00028,7]
[357876717,1744494642836,-151.0,0.00028,7]
[357876719,1744494642845,-151.0,0.00028,7]
[357876721,1744494642854,-151.0,0.00028,7]
[357876723,1744494642865,-204.936201,0.00028,7]
[357876726,1744494642874,-204.936201,0.00028,7]
[357876728,1744494642883,-204.936201,0.00028,7]
[357876730,1744494642892,-204.936201,0.00028,7]
[357876732,1744494642902,-151.0,0.00028,7]
[357876733,1744494642911,-151.0,0.00028,7]
[357876735,1744494642921,-151.0,0.00028,7]
[357876738,1744494642931,-263.157221,0.00028,7]
[357876740,1744494642941,-5000.0,0.00028,10]
[357876742,1744494642951,-32365.17115641,0.00028,2]
[357876743,1744494642960,-2000.0,0.00028,2]
[357876746,1744494642971,-469.84,0.0002803,6]
[357876748,1744494642981,-326.30646626,0.00028073,5]
[357876752,1744494643016,-151.0,0.000259,7]
[357876754,1744494643026,-152.486814,0.00027348,7]
[357876756,1744494643035,-91.323186,0.00028073,5]
[357877398,1744495513951,-160.0,0.00024087,2]
[357877399,1744495534796,-160.0,0.00024088,2]
[357877400,1744495534820,-513.43,0.00024096,2]
[357877401,1744495545957,-188.05621933,0.00024096,2]
[357877402,1744495563080,-191.0519589,0.00024096,2]
[357877404,1744495623666,-107.46182177,0.00024096,2]
[357877405,1744495623693,-83.59013713,0.0002459,2]
[357877410,1744495684534,-157.0039481,0.0002459,2]
[357877445,1744495832657,-500.0,0.00023988,2]
[357877446,1744495832668,-10756.75508,0.00024591,2]
[357877447,1744495832680,-11676.56491407,0.00024591,2]
[357877448,1744495832724,-2466.68000593,0.00024591,2]
[357877449,1744495832734,-191.554488,0.00024591,2]
[357877450,1744495832743,-419.375,0.00024636,2]
[357877451,1744495832752,-10021.83303273,0.00025312,2]
[357877452,1744495832762,-419.80094169,0.00025651,2]
[357877453,1744495832771,-160.0,0.00025651,2]
[357877454,1744495832781,-837.80299543,0.00025651,2]
[357877455,1744495832791,-12541.95421053,0.00025659,2]
[357877456,1744495832801,-438.87136445,0.00025673,2]
[357877457,1744495832811,-500.0,0.00025673,2]
[357877458,1744495832820,-500.0,0.00025673,2]
[357877459,1744495832829,-500.0,0.00025673,2]
[357877460,1744495832839,-500.0,0.00025673,2]
[357877461,1744495832848,-603.64,0.00025689,3]
[357877462,1744495832857,-500.0,0.00025698,2]
[357877463,1744495832867,-184.42234252,0.00025698,2]
[357877464,1744495832877,-500.0,0.00025698,2]
[357877465,1744495832886,-444.47006239,0.00025698,2]
[357877466,1744495832896,-325.26231223,0.00025698,2]
[357877467,1744495832906,-500.0,0.00025698,2]
[357877468,1744495832916,-500.0,0.00025698,2]
[357877469,1744495832926,-500.0,0.00025698,2]
[357877470,1744495832936,-500.0,0.00025698,2]
[357877471,1744495832947,-500.0,0.00025698,2]
[357877472,1744495832958,-500.0,0.00025698,2]
[357877473,1744495832968,-500.0,0.00025698,2]
[357877474,1744495832978,-500.0,0.00025698,2]
[357877475,1744495832987,-500.0,0.00025698,2]
[357877476,1744495832997,-500.0,0.00025698,2]
[357877477,1744495833007,-500.0,0.00025698,2]
[357877478,1744495833017,-500.0,0.00025698,2]
[357877479,1744495833027,-500.0,0.00025698,2]
[357877480,1744495833040,-500.0,0.00025698,2]
[357877481,1744495833050,-500.0,0.00025698,2]
[357877482,1744495833072,-500.0,0.00025698,2]
[357877483,1744495833087,-500.0,0.00025698,2]
[357877484,1744495833098,-500.0,0.00025698,2]
[357877485,1744495833109,-500.0,0.00025698,2]
[357877486,1744495833120,-500.0,0.00025698,2]
[357877487,1744495833130,-415.29659073,0.00025698,2]
[357877488,1744495833141,-500.0,0.00025698,2]
[357877489,1744495833152,-500.0,0.00025698,2]
[357877490,1744495833163,-500.0,0.00025698,2]
[357877491,1744495833174,-5232.27024064,0.00025699,2]
[357877492,1744495833189,-485.39975936,0.00025699,2]
[357877493,1744495833199,-5717.67,0.00025699,2]
[357877494,1744495833210,-5717.67,0.00025699,2]
[357877495,1744495833220,-5717.67,0.00025699,2]
[357877496,1744495833231,-5717.67,0.00025699,2]
[357877497,1744495833242,-5717.67,0.00025699,2]
[357877498,1744495833252,-5717.67,0.00025699,2]
[357877499,1744495833262,-5717.67,0.00025699,2]
[357877500,1744495833273,-5717.67,0.00025699,2]
[357877501,1744495833284,-5717.67,0.00025699,2]
[357877502,1744495833294,-5717.67,0.00025699,2]
[357877503,1744495833305,-5717.67,0.00025699,2]
[357877504,1744495833315,-5717.67,0.00025699,2]
[357877505,1744495833325,-5717.67,0.00025699,2]
[357877506,1744495833336,-5717.67,0.00025699,2]
[357877507,1744495833346,-5717.67,0.00025699,2]
[357877508,1744495833357,-5717.67,0.00025699,2]
[357877509,1744495833367,-5717.67,0.00025699,2]
[357877510,1744495833378,-5717.67,0.00025699,2]
[357877511,1744495833388,-5717.67,0.00025699,2]
[357877512,1744495833398,-5717.67,0.00025699,2]
[357877513,1744495833409,-5717.67,0.00025699,2]
[357877514,1744495833419,-5717.67,0.00025699,2]
[357877515,1744495833430,-4747.99689519,0.00025699,2]
[357877516,1744495833444,-427.34912444,0.00025699,2]
[357877528,1744495838150,-160.0,0.00025651,2]
[357877529,1744495838160,-500.0,0.00025698,2]
[357877530,1744495838169,-87.72,0.00025698,2]
[357878404,1744495973819,-327.76293455,0.00023888,2]
[357878476,1744497032167,-172.23706545,0.00023888,2]
[357878478,1744497032177,-145.56961542,0.00023888,2]
[357878481,1744497032197,-104.43038458,0.00023888,2]
[357878483,1744497032207,-2205.51889485,0.00024,2]
[357878488,1744497032247,-3871.73237617,0.00024,2]
[357878490,1744497032257,-191.5544898,0.00024007,2]
[357878492,1744497032266,-153.595159,0.00024357,2]
[357878494,1744497032276,-300.0,0.00024899,2]
[357878496,1744497032285,-4177.57319377,0.000249,5]
[357878498,1744497032295,-4177.57319362,0.00024934,5]
[357878500,1744497032304,-476.0101866,0.00024969,5]
[357878501,1744497032316,-1798.50091296,0.00024969,5]
[357878502,1744497032327,-1579.21663627,0.00024969,5]
[357878545,1744497038279,-323.84545779,0.00024969,5]
[357878547,1744497038289,-189.69914682,0.00025002,2]
[357878549,1744497038300,-500.0,0.00025002,2]
[357878551,1744497038310,-415.32674525,0.00025002,2]
[357878554,1744497038322,-84.67325475,0.00025002,2]
[357878556,1744497038332,-654.63234418,0.00025002,2]
[357878819,1744497040598,-294.47765582,0.00025002,2]
[357878821,1744497040608,-129.32039849,0.00025002,2]
[357878824,1744497040621,-204.74772594,0.00025002,2]
[357878825,1744497040631,-500.0,0.00025002,2]
[357878827,1744497040640,-949.11,0.00025002,2]
[357878830,1744497040650,-949.11,0.00025002,2]
[357878831,1744497040659,-376.0530652,0.00025002,2]
[357878834,1744497040670,-500.0,0.00025002,2]
[357878836,1744497040680,-500.0,0.00025002,2]
[357878838,1744497040690,-500.0,0.00025002,2]
[357878840,1744497040700,-500.0,0.00025002,2]
[357878842,1744497040711,-500.0,0.00025002,2]
[357878844,1744497040721,-949.11,0.00025002,2]
[357878846,1744497040731,-500.0,0.00025002,2]
[357878848,1744497040741,-500.0,0.00025002,2]
[357878850,1744497040751,-500.0,0.00025002,2]
[357878852,1744497040760,-500.0,0.00025002,2]
[357878854,1744497040770,-500.0,0.00025002,2]
[357878856,1744497040783,-500.0,0.00025002,2]
[357878858,1744497040793,-500.0,0.00025002,2]
[357878860,1744497040802,-500.0,0.00025002,2]
[357878862,1744497040812,-500.0,0.00025002,2]
[357878864,1744497040822,-949.11,0.00025002,2]
[357878866,1744497040832,-500.0,0.00025002,2]
[357878868,1744497040842,-500.0,0.00025002,2]
[357878870,1744497040854,-239.8525215,0.00025002,2]
[357878872,1744497040864,-500.0,0.00025002,2]
[357878874,1744497040874,-949.11,0.00025002,2]
[357878876,1744497040885,-500.0,0.00025002,2]
[357878878,1744497040895,-949.11,0.00025002,2]
[357878880,1744497040906,-949.11,0.00025002,2]
[357878882,1744497040916,-949.11,0.00025002,2]
[357878884,1744497040926,-949.11,0.00025002,2]
[357878887,1744497040936,-500.0,0.00025002,2]
[357878889,1744497040946,-949.11,0.00025002,2]
[357878891,1744497040956,-588.60769306,0.00025002,2]
[357878893,1744497040966,-500.0,0.00025002,2]
[357878895,1744497040977,-500.0,0.00025002,2]
[357878897,1744497040986,-500.0,0.00025002,2]
[357878899,1744497040996,-500.0,0.00025002,2]
[357878901,1744497041006,-500.0,0.00025002,2]
[357878903,1744497041016,-500.0,0.00025002,2]
[357878905,1744497041026,-500.0,0.00025002,2]
[357878907,1744497041036,-500.0,0.00025002,2]
[357878909,1744497041046,-500.0,0.00025002,2]
[357878911,1744497041056,-500.0,0.00025002,2]
[357878913,1744497041066,-500.0,0.00025003,2]
[357878915,1744497041076,-500.0,0.00025003,2]
[357878917,1744497041086,-500.0,0.00025003,2]
[357878919,1744497041096,-500.0,0.00025003,2]
[357878921,1744497041107,-500.0,0.00025003,2]
[357878923,1744497041116,-500.0,0.00025003,2]
[357878925,1744497041131,-500.0,0.00025003,2]
[357878926,1744497041144,-500.0,0.00025003,2]
[357878927,1744497041154,-500.0,0.00025003,2]
[357878928,1744497041165,-500.0,0.00025003,2]
[357878929,1744497041174,-500.0,0.00025003,2]
[357878930,1744497041186,-500.0,0.00025003,2]
[357878931,1744497041196,-500.0,0.00025003,2]
[357878932,1744497041207,-500.0,0.00025003,2]
[357878933,1744497041218,-500.0,0.00025003,2]
[357878934,1744497041228,-500.0,0.00025003,2]
[357878935,1744497041239,-500.0,0.00025003,2]
[357878936,1744497041251,-500.0,0.00025003,2]
[357878937,1744497041262,-500.0,0.00025003,2]
[357878938,1744497041272,-455.04,0.00025003,2]
[357878939,1744497041282,-500.0,0.00025003,2]
[357878940,1744497041293,-500.0,0.00025003,2]
[357878941,1744497041303,-506.11460561,0.00025003,2]
[357878942,1744497041313,-777.36,0.00025003,2]
[357878943,1744497041323,-777.36,0.00025003,2]
[357878944,1744497041332,-777.36,0.00025003,2]
[357878945,1744497041342,-777.36,0.00025003,2]
[357878946,1744497041352,-777.36,0.00025003,2]
[357878948,1744497041363,-777.36,0.00025003,2]
[357878950,1744497041373,-777.36,0.00025003,2]
[357878952,1744497041382,-777.36,0.00025003,2]
[357878954,1744497041392,-777.36,0.00025003,2]
[357878956,1744497041402,-777.36,0.00025003,2]
[357878958,1744497041412,-777.36,0.00025003,2]
[357878960,1744497041423,-777.36,0.00025003,2]
[357878963,1744497041435,-777.36,0.00025003,2]
[357878965,1744497041444,-777.36,0.00025003,2]
[357878967,1744497041454,-777.36,0.00025003,2]
[357878969,1744497041463,-777.36,0.00025003,2]
[357878970,1744497041475,-777.36,0.00025003,2]
[357878972,1744497041485,-777.36,0.00025003,2]
[357878974,1744497041494,-777.36,0.00025003,2]
[357878976,1744497041507,-777.36,0.00025003,2]
[357878978,1744497041518,-581.75887113,0.00025003,2]
[357879235,1744497044219,-500.0,0.00025002,2]
[357879237,1744497044229,-195.60112887,0.00025003,2]
[357879239,1744497044239,-777.36,0.00025003,2]
[357879241,1744497044249,-777.36,0.00025003,2]
[357879243,1744497044258,-30.58602046,0.00025003,2]
[357879245,1744497044270,-746.90199206,0.00025003,2]
[357879247,1744497044280,-611.97,0.00025003,2]
[357879249,1744497044289,-611.97,0.00025003,2]
[357879251,1744497044299,-611.97,0.00025003,2]
[357879253,1744497044309,-611.97,0.00025003,2]
[357879255,1744497044318,-611.97,0.00025003,2]
[357879257,1744497044327,-611.97,0.00025003,2]
[357879259,1744497044336,-611.97,0.00025003,2]
[357879261,1744497044346,-611.97,0.00025003,2]
[357879263,1744497044357,-611.97,0.00025003,2]
[357879265,1744497044367,-611.97,0.00025003,2]
[357879268,1744497044377,-611.97,0.00025003,2]
[357879269,1744497044386,-611.97,0.00025003,2]
[357879271,1744497044395,-490.85535971,0.00025003,2]
[357879476,1744497206898,212.39,0.0002469,10]
[357879477,1744497226359,151.0,0.00025,19]
[357879478,1744497312901,309.55,0.0002469,10]
[357879480,1744497615824,-396.9,0.000225,2]
[357879481,1744497829613,151.0,0.00024,10]
[357879486,1744498211670,-637.79394624,0.00022969,2]
[357879496,1744498232355,-404.1577752,0.00022951,2]
[357879497,1744498232365,-2233.8422248,0.00022969,2]
[357879498,1744498232377,-519.07557873,0.00022969,2]
[357879499,1744498232397,-537.21595774,0.00022969,2]
[357880304,1744498246525,-16111.736429,0.00022969,2]
[357880366,1744498247956,-404.1577752,0.00022969,2]
[357880367,1744498251514,-785.34246624,0.00022969,2]
[357880368,1744498254104,-785.34246624,0.00022969,2]
[357880369,1744498255237,-140.16645881,0.00022969,2]
[357880370,1744498506175,-492.68258862,0.00022868,2]
[357880371,1744498506199,-7.31741138,0.00022869,2]
[357880372,1744498507437,-206.80868237,0.00022869,2]
[357880373,1744498515347,-192.3084423,0.00022869,2]
[357880374,1744498515374,-7.6871978,0.00022959,3]
[357880375,1744498518003,-199.9956401,0.00022959,3]
[357880376,1744498526383,-237.9951355,0.00022959,3]
[357880396,1744499432989,-772.9176817,0.00021952,2]
[357880397,1744499433000,-383.88664083,0.000227,2]
[357880398,1744499433010,-300.0,0.00022724,2]
[357880399,1744499433020,-7669.07230201,0.00022725,2]
[357880400,1744499433044,-12816.73822666,0.00022725,2]
[357880401,1744499433054,-384.73449035,0.00022729,2]
[357880402,1744499433064,-189.0,0.000228,5]
[357880403,1744499433073,-151.0,0.00022943,2]
[357880404,1744499433083,-207.4,0.00022943,2]
[357880405,1744499433093,-190.76,0.00022945,3]
[357880406,1744499433103,-572.28,0.00022945,3]
[357880407,1744499433112,-19875.54697429,0.00022953,2]
[357880408,1744499433122,-1876.47711739,0.00022953,3]
[357880409,1744499433132,-500.0,0.00022953,2]
[357880410,1744499433142,-500.0,0.00022953,2]
[357880411,1744499433151,-500.0,0.00022953,2]
[357880412,1744499433161,-500.0,0.00022953,2]
[357880413,1744499433171,-500.0,0.00022953,2]
[357880414,1744499433181,-500.0,0.00022953,2]
[357880415,1744499433191,-500.0,0.00022953,2]
[357880416,1744499433205,-500.0,0.00022953,2]
[357880417,1744499433215,-500.0,0.00022953,2]
[357880418,1744499433225,-500.0,0.00022953,2]
[357880419,1744499433236,-500.0,0.00022953,2]
[357880420,1744499433247,-500.0,0.00022953,2]
[357880421,1744499433256,-500.0,0.00022953,2]
[357880422,1744499433266,-457.18700357,0.00022953,2]
[357880423,1744499433276,-500.0,0.00022953,2]
[357880424,1744499433286,-500.0,0.00022953,2]
[357880425,1744499433297,-500.0,0.00022953,2]
[357880426,1744499433306,-500.0,0.00022953,2]
[357880427,1744499433316,-500.0,0.00022953,2]
[357880428,1744499433326,-500.0,0.00022953,2]
[357880429,1744499433336,-500.0,0.00022953,2]
[357880430,1744499433346,-500.0,0.00022953,2]
[357880431,1744499433356,-636.75175781,0.00022953,2]
[357880432,1744499433365,-271.07844328,0.00022953,2]
[357880433,1744499433375,-500.0,0.00022953,2]
[357880434,1744499433385,-500.0,0.00022953,2]
[357880435,1744499433394,-500.0,0.00022953,2]
[357880436,1744499433404,-500.0,0.00022953,2]
[357880437,1744499433414,-500.0,0.00022953,2]
[357880438,1744499433423,-500.0,0.00022953,2]
[357880439,1744499433433,-500.0,0.00022953,2]
[357880440,1744499433443,-500.0,0.00022953,2]
[357880441,1744499433453,-500.0,0.00022953,2]
[357880442,1744499433463,-528.23902942,0.00022953,2]
[357880443,1744499433474,-500.0,0.00022953,2]
[357880444,1744499433484,-500.0,0.00022953,2]
[357880445,1744499433494,-500.0,0.00022953,2]
[357880446,1744499433504,-500.0,0.00022953,2]
[357880447,1744499433513,-156.63266631,0.00022953,2]
[357880448,1744499433523,-500.0,0.00022953,2]
[357880449,1744499433533,-500.0,0.00022953,2]
[357880450,1744499433543,-500.0,0.00022953,2]
[357880451,1744499433554,-500.0,0.00022953,2]
[357880452,1744499433565,-500.0,0.00022953,2]
[357880453,1744499433574,-500.0,0.00022953,2]
[357880454,1744499433585,-500.0,0.00022953,2]
[357880455,1744499433596,-500.0,0.00022953,2]
[357880456,1744499433607,-500.0,0.00022953,2]
[357880457,1744499433616,-500.0,0.00022953,2]
[357880458,1744499433626,-500.0,0.00022953,2]
[357880459,1744499433635,-500.0,0.00022953,2]
[357880460,1744499433645,-173.90215483,0.00022953,2]
[357880461,1744499433656,-500.0,0.00022953,2]
[357880462,1744499433666,-500.0,0.00022953,2]
[357880463,1744499433676,-500.0,0.00022953,2]
[357880464,1744499433685,-500.0,0.00022953,2]
[357880465,1744499433695,-500.0,0.00022953,2]
[357880466,1744499433705,-500.0,0.00022953,2]
[357880467,1744499433714,-500.0,0.00022953,2]
[357880468,1744499433724,-500.0,0.00022953,2]
[357880469,1744499433733,-266.45795008,0.00022953,2]
[357880470,1744499433743,-500.0,0.00022953,2]
[357880471,1744499433752,-500.0,0.00022953,2]
[357880472,1744499433762,-500.0,0.00022953,2]
[357880473,1744499433771,-500.0,0.00022953,2]
[357880474,1744499433780,-500.0,0.00022953,2]
[357880475,1744499433790,-500.0,0.00022953,2]
[357880476,1744499433800,-343.26428981,0.00022953,2]
[357880477,1744499433810,-500.0,0.00022953,2]
[357880478,1744499433819,-500.0,0.00022953,2]
[357880479,1744499433829,-500.0,0.00022953,2]
[357880480,1744499433839,-500.0,0.00022953,2]
[357880481,1744499433848,-500.0,0.00022953,2]
[357880482,1744499433858,-500.0,0.00022953,2]
[357880483,1744499433868,-500.0,0.00022953,2]
[357880484,1744499433878,-500.0,0.00022953,2]
[357880485,1744499433888,-500.0,0.00022953,2]
[357880486,1744499433897,-254.89219922,0.00022953,2]
[357880487,1744499433907,-500.0,0.00022953,2]
[357880488,1744499433917,-283.84892637,0.00022953,2]
[357880489,1744499433927,-500.0,0.00022953,2]
[357880490,1744499433937,-500.0,0.00022954,2]
[357880491,1744499433946,-535.84191497,0.00022954,2]
[357880492,1744499433956,-579.59,0.00022954,2]
[357880493,1744499433966,-579.59,0.00022954,2]
[357880494,1744499433976,-579.59,0.00022954,2]
[357880495,1744499433987,-579.59,0.00022954,2]
[357880496,1744499433997,-579.59,0.00022954,2]
[357880497,1744499434007,-579.59,0.00022954,2]
[357880498,1744499434018,-579.59,0.00022954,2]
[357880499,1744499434029,-579.59,0.00022954,2]
[357880500,1744499434039,-579.59,0.00022954,2]
[357880501,1744499434049,-579.59,0.00022954,2]
[357880502,1744499434060,-579.59,0.00022954,2]
[357880503,1744499434071,-579.59,0.00022954,2]
[357880504,1744499434081,-579.59,0.00022954,2]
[357880505,1744499434092,-579.59,0.00022954,2]
[357880506,1744499434104,-579.59,0.00022954,2]
[357880507,1744499434114,-579.59,0.00022954,2]
[357880508,1744499434123,-579.59,0.00022954,2]
[357880509,1744499434133,-579.59,0.00022954,2]
[357880510,1744499434144,-579.59,0.00022954,2]
[357880511,1744499434154,-579.59,0.00022954,2]
[357880512,1744499434164,-500.0,0.00022954,2]
[357880513,1744499434175,-579.59,0.00022954,2]
[357880514,1744499434184,-500.0,0.00022954,2]
[357880515,1744499434196,-579.59,0.00022954,2]
[357880516,1744499434209,-500.0,0.00022954,2]
[357880517,1744499434219,-500.0,0.00022954,2]
[357880518,1744499434230,-579.59,0.00022954,2]
[357880519,1744499434241,-500.0,0.00022954,2]
[357880520,1744499434251,-500.0,0.00022954,2]
[357880521,1744499434261,-500.0,0.00022954,2]
[357880522,1744499434271,-500.0,0.00022954,2]
[357880523,1744499434283,-500.0,0.00022954,2]
[357880524,1744499434294,-500.0,0.00022954,2]
[357880525,1744499434304,-500.0,0.00022954,2]
[357880526,1744499434315,-579.64510575,0.00022954,2]
[357880527,1744499434325,-500.0,0.00022954,2]
[357880528,1744499434336,-500.0,0.00022954,2]
[357880529,1744499434347,-500.0,0.00022954,2]
[357880530,1744499434357,-500.0,0.00022954,2]
[357880531,1744499434368,-500.0,0.00022954,2]
[357880532,1744499434378,-2194.29,0.00022954,2]
[357880533,1744499434388,-2194.29,0.00022954,2]
[357880534,1744499434398,-2194.29,0.00022954,2]
[357880535,1744499434409,-2194.29,0.00022954,2]
[357880536,1744499434419,-2194.29,0.00022954,2]
[357880537,1744499434430,-2194.29,0.00022954,2]
[357880538,1744499434441,-2194.29,0.00022954,2]
[357880539,1744499434451,-2194.29,0.00022954,2]
[357880540,1744499434463,-2194.29,0.00022954,2]
[357880541,1744499434475,-2194.29,0.00022954,2]
[357880542,1744499434485,-2194.29,0.00022954,2]
[357880543,1744499434497,-2194.29,0.00022954,2]
[357880544,1744499434507,-2194.29,0.00022954,2]
[357880545,1744499434518,-2194.29,0.00022954,2]
[357880546,1744499434528,-2194.29,0.00022954,2]
[357880547,1744499434538,-2194.29,0.00022954,2]
[357880548,1744499434549,-2194.29,0.00022954,2]
[357880549,1744499434560,-2028.10352588,0.00022954,2]
[357880579,1744499438672,-500.0,0.00022953,2]
[357880581,1744499438682,-500.0,0.00022953,2]
[357880583,1744499438692,-500.0,0.00022953,2]
[357880585,1744499438703,-75.56287873,0.00022953,2]
[357880794,1744499440939,-424.43712127,0.00022953,2]
[357880797,1744499440950,-432.86872852,0.00022953,2]
[357880799,1744499440960,-166.18647412,0.00022954,2]
[357880801,1744499440971,-2194.29,0.00022954,2]
[357880802,1744499440982,-2194.29,0.00022954,2]
[357880803,1744499440993,-2194.29,0.00022954,2]
[357880804,1744499441003,-2194.29,0.00022954,2]
[357880805,1744499441014,-2194.29,0.00022954,2]
[357880806,1744499441024,-2194.35300527,0.00022954,2]
[357880807,1744499441034,-500.0,0.00022954,2]
[357880808,1744499441044,-500.0,0.00022954,2]
[357880809,1744499441055,-500.0,0.00022954,2]
[357880810,1744499441065,-500.0,0.00022954,2]
[357880811,1744499441075,-553.6660614,0.00022954,2]
[357880812,1744499441085,-500.0,0.00022954,2]
[357880813,1744499441096,-500.0,0.00022954,2]
[357880814,1744499441105,-500.0,0.00022954,2]
[357880815,1744499441115,-500.0,0.00022954,2]
[357880816,1744499441126,-500.0,0.00022954,2]
[357880817,1744499441136,-500.0,0.00022954,2]
[357880818,1744499441146,-500.0,0.00022954,2]
[357880819,1744499441155,-500.0,0.00022954,2]
[357880820,1744499441166,-500.0,0.00022954,2]
[357880821,1744499441176,-500.0,0.00022954,2]
[357880822,1744499441186,-500.0,0.00022954,2]
[357880823,1744499441199,-500.0,0.00022954,2]
[357880825,1744499441212,-500.0,0.00022954,2]
[357880827,1744499441223,-500.0,0.00022954,2]
[357880859,1744499441538,-500.0,0.00022954,2]
[357880863,1744499441575,-500.0,0.00022954,2]
[357880865,1744499441585,-500.0,0.00022954,2]
[357880867,1744499441595,-500.0,0.00022954,2]
[357880869,1744499441605,-542.77,0.00022954,2]
[357880871,1744499441615,-542.77,0.00022954,2]
[357880873,1744499441625,-500.0,0.00022954,2]
[357880875,1744499441635,-542.77,0.00022954,2]
[357880877,1744499441645,-500.0,0.00022954,2]
[357880879,1744499441655,-542.77,0.00022954,2]
[357880881,1744499441664,-500.0,0.00022954,2]
[357880883,1744499441675,-542.77,0.00022954,2]
[357880885,1744499441684,-542.77,0.00022954,2]
[357880887,1744499441694,-500.0,0.00022954,2]
[357880889,1744499441704,-542.77,0.00022954,2]
[357880890,1744499441713,-500.0,0.00022954,2]
[357880891,1744499441723,-542.77,0.00022954,2]
[357880892,1744499441732,-352.97368113,0.00022954,2]
[357880893,1744499441742,-542.77,0.00022954,2]
[357880894,1744499441751,-542.77,0.00022954,2]
[357880895,1744499441761,-542.77,0.00022954,2]
[357880896,1744499441771,-542.77,0.00022954,2]